Cogmind - Beta 17 @@@ ROGUE MODE // 2026.07.30 @ 20:59:13 Player: TheSkyeDoctor Result: Destroyed by VZ-OGO(R) with Subdweller Shrapnel Launcher Performance ------------- Evolutions (0) 0 Regions Visited (2) 400 Robots Destroyed (15) 75 Value Destroyed (374) 374 Prototype IDs (2) 40 Alien Tech Used (0) 0 Bonus (0) 0 TOTAL SCORE: 889 Bonus ------- None Cogmind --------- Core Integrity 0/250 Matter 254/300 Energy 100/100 System Corruption 0% Temperature Cool (0) Movement Treading (480) Ox4 Location -10/Subcaves Parts ------- > --- POWER (1) -------- (None) > --- PROPULSION (2) --- Light Treads > --- UTILITY (2) ------ Huge Storage Unit > --- WEAPON (2) ------- Light Assault Rifle > --- INVENTORY (25) --- Improved Heat Sink Structural Scanner Improved Terrain Scanner Light Armor Plating Small Laser Peak State ------------ > --- POWER ------------ Light Ion Engine > --- PROPULSION ------- Light Treads Light Treads > --- UTILITY ---------- Large Storage Unit Seismic Detector > --- WEAPON ----------- Light Assault Rifle Light Assault Rifle > --- INVENTORY -------- Improved Heat Sink Small Storage Unit Improved Terrain Scanner Light Armor Plating Small Laser Grenade Launcher [Rating: 8] Favorites ----------- Power Light Ion Engine Engine Light Ion Engine Propulsion Light Treads Treads Light Treads Utility Seismic Detector Device Seismic Detector Storage Huge Storage Unit Weapon Light Assault Rifle Ballistic Gun Light Assault Rifle Launcher Grenade Launcher Build | -11 -10 -10 ------- Run | Yrd Mat Sub Slots Evolved . | . . . Power . | . . . Propulsion . | . . . Utility . | . . . Weapon . | . . . Parts Attached 12 | 7 3 2 Power 2 | 1 1 . Engine 2 | 1 1 . Core . | . . . Reactor . | . . . Propulsion 3 | 2 . 1 Treads 3 | 2 . 1 Leg . | . . . Wheel . | . . . Hover . | . . . Flight . | . . . Utility 4 | 2 2 . Device 1 | 1 . . Storage 3 | 1 2 . Processor . | . . . Hackware . | . . . Protection . | . . . Artifact . | . . . Weapon 3 | 2 . 1 Energy Gun . | . . . Energy Cannon . | . . . Ballistic Gun 2 | 2 . . Ballistic Cannon . | . . . Launcher 1 | . . 1 Special Weapon . | . . . Impact Weapon . | . . . Slashing Weapon . | . . . Piercing Weapon . | . . . Special Melee Weapon . | . . . Unidentified Prototypes . | . . . Parts Lost 7 | . 1 6 Power 2 | . 1 1 Propulsion 2 | . . 2 Utility 1 | . . 1 Weapon 2 | . . 2 Highest Loss Streak 5 | . 1 5 To Critical Strikes . | . . . Average Backups 5 | 1 5 5 Power . | . . . Propulsion . | . . . Utility 3 | . 3 4 Weapon 1 | . 1 1 Tool/Special . | . . . Unused Backups 6 | . 1 5 Power . | . . . Propulsion . | . . . Utility 5 | . 1 4 Weapon 1 | . . 1 Tool/Special . | . . . Average Slot Usage (%) 90 | . 99 77 Engine 10 | . 14 6 Treads 24 | . 27 20 Device 11 | . 14 6 Storage 14 | . 14 14 Ballistic Gun 24 | . 28 20 Launcher 3 | . . 7 Peak Build Rating 8 | 7 8 8 Average Rating 6 | 5 7 5 On Entrance 5 | . 7 8 Avg Prop Armor Cover (%) . | . . . Naked Turns . | . . . Heaviest Build 86 | 13 86 86 Greatest Support 40 | 40 40 40 Greatest Overweight (x) 4 | . 4 4 Average Overweight (x) 1 | . . 2 Largest Inventory Capacity 25 | 8 25 25 Average Capacity 20 | 7 18 25 Most Carried 7 | 2 7 7 Average Carried 5 | 1 5 5 Final Capacity 25 | 8 25 25 Final Carried 7 | 2 7 5 Class Distribution -------------------- 100% | Mutant Dominant Class ---------------- Mutant | -10/Materials Mutant | -10/Subcaves Resources | -11 -10 -10 ----------- Run | Yrd Mat Sub Matter Collected 449 | 298 111 40 Remotely . | . . . Salvage Created 508 | 115 275 118 Parts 33 | 6 19 8 Haulers Intercepted 1 | . 1 . Recyclers Shooed 1 | 1 . . Parts Field Recycled . | . . . Retrieved Matter . | . . . Parts Self-Destructed . | . . . Prevented . | . . . Parts Restored . | . . . Kills | -11 -10 -10 ------- Run | Yrd Mat Sub Combat Hostiles Destroyed 11 | . 7 4 Guns 7 | . 7 . AOE 4 | . . 4 Classes Destroyed 6 | 2 3 1 Tunneler 2 | 2 . . Hauler 1 | . 1 . Recycler 1 | 1 . . Swarmer 3 | . 3 . Grunt 4 | . 4 . Subdweller 4 | . . 4 Best Kill Streak 5 | 2 5 4 Combat Bots Only 5 | . 5 4 Max Kills in Single Turn 2 | 1 2 1 Gunslinging . | . . . Exploded 1 | . . 1 Melee . | . . . Uniques/NPCs Destroyed . | . . . Combat | -11 -10 -10 -------- Run | Yrd Mat Sub Hostile Shots Fired 83 | . 59 24 Missed 20 | . 14 6 Hits 63 | . 45 18 Projectile 63 | . 45 18 AOE 1 | . . 1 Damage Taken 970 | . 497 473 Core 265 | . 90 175 Absorbed by Shields . | . . . Core Remaining (%) 100 | 100 . . Volleys Fired 59 | 14 36 9 Largest 2 | 2 2 2 Hottest 50 | 40 40 50 Shots Fired 118 | 28 72 18 Gun 110 | 28 72 10 Cannon . | . . . Launcher 8 | . . 8 Special . | . . . Kinetic 110 | 28 72 10 Thermal . | . . . Explosive 8 | . . 8 Electromagnetic . | . . . Robot Hit Streak 9 | 7 7 9 Robot Miss Streak 2 | 2 2 1 Penetration Max . | . . . Secondary Targets 1 | . 1 . Max Gunslinging Chain 1 | . 1 . Shots Hit Robots 81 | 20 49 12 Core Hits 34 | 6 20 8 Critical Kills 1 | 1 . . Critical Parts Destroyed . | . . . Critical Strikes 1 | 1 . . Destroy 1 | 1 . . Melee Attacks . | . . . Impact . | . . . Slashing . | . . . Piercing . | . . . Sneak Attacks . | . . . Combat Hostiles . | . . . Follow-up Attacks . | . . . Damage Inflicted 1055 | 154 424 477 Guns 629 | 154 424 51 Cannons . | . . . Explosions 426 | . . 426 Melee . | . . . Ramming . | . . . Kinetic 629 | 154 424 51 Thermal . | . . . Explosive 426 | . . 426 Electromagnetic . | . . . Impact . | . . . Slashing . | . . . Piercing . | . . . Highest Corruption . | . . . Average Corruption . | . . . Corruption Purged . | . . . Corruption Blocked . | . . . Overload Shots . | . . . Overflow Damage 32 | . . 32 Projectiles . | . . . Explosions 32 | . . 32 Melee . | . . . Knockbacks . | . . . Impact . | . . . Kinetic . | . . . Secondary . | . . . Self-Inflicted Damage 116 | . . 116 Shots 5 | . . 5 Rammed . | . . . Targets Rammed . | . . . Kicked . | . . . Crushed . | . . . Highest Temperature 30 | . 30 . Average Temperature 14 | . 14 . Received Heat Transfer 261 | . 165 96 Siege Activations . | . . . Martial Activations . | . . . Shielding Activations . | . . . Robots Disrupted . | . . . Combat Hostiles . | . . . Robots Corrupted . | . . . Combat Hostiles . | . . . Parts Fried . | . . . Impact Corruptions . | . . . Robots Melted . | . . . Combat Hostiles . | . . . Parts Melted 2 | . . 2 Heat Transferred . | . . . Parts Sabotaged . | . . . Parts Stolen . | . . . Parts Stripped . | . . . Power Chain Reactions . | . . . Alert | -11 -10 -10 ------- Run | Yrd Mat Sub Maximum Alert Level . | . . . Low Security (%) 100 | 100 100 . Level 1 . | . . . Level 2 . | . . . Level 3 . | . . . Level 4 . | . . . Level 5 . | . . . High Security . | . . . Max Security . | . . . Peak Influence 120 | 5 120 . Initial . | . . . Average 13 | . 15 . Influence Increases 192 | 15 177 . Destroy 0b10 Robot/C 140 | . 140 . Destroy 0b10 Robot/NC 20 | 15 5 . Destroy Leader 32 | . 32 . Influence Decreases 192 | 15 177 . Time Decay 182 | 15 167 . Lost Part 10 | . 10 . Squads Dispatched 3 | . 3 . Investigation 1 | . 1 . Extermination . | . . . Reinforcement 2 | . 2 . Assault . | . . . Garrison . | . . . Intercept . | . . . Searches Triggered . | . . . Construction Impeded . | . . . Haulers Reinforced . | . . . Active Scanning Responses . | . . . Cargo Convoy Interrupts . | . . . Stealth | -11 -10 -10 --------- Run | Yrd Mat Sub Distress Signals 1 | . 1 . Communications Jammed . | . . . Distress Signals . | . . . Times Spotted 12 | . 7 5 Peak Tracking Total 4 | . 4 2 Tactical Retreats . | . . . Traps | -11 -10 -10 ------- Run | Yrd Mat Sub Traps Triggered 2 | . 2 . Indirectly . | . . . Trap Hack Attempts . | . . . Triggered . | . . . Disarmed . | . . . Reprogrammed . | . . . Reused . | . . . Traps Extracted . | . . . Installed . | . . . Triggered . | . . . Machines | -11 -10 -10 ---------- Run | Yrd Mat Sub Machines Disabled . | . . . Max in Single Turn . | . . . Machines Repaired . | . . . Machines Dismantled . | . . . Machines Sabotaged . | . . . Overloaded Fab Kills . | . . . Hacking | -11 -10 -10 --------- Run | Yrd Mat Sub Machines Accessed 1 | . 1 . Terminals 1 | . 1 . Fabricators . | . . . Repair Stations . | . . . Recycling Units . | . . . Scanalyzers . | . . . Garrison Access . | . . . Total Hacks 1 | . 1 . Successful 1 | . 1 . Failed . | . . . Catastrophic . | . . . Database Lockouts . | . . . Manual . | . . . Terminals 1 | . 1 . Fabricators . | . . . Repair Stations . | . . . Recycling Units . | . . . Scanalyzers . | . . . Garrison Access . | . . . Terminal Hacks 1 | . 1 . Prototype ID Bank 1 | . 1 . Fabricator Hacks . | . . . Repair Station Hacks . | . . . Recycling Unit Hacks . | . . . Scanalyzer . | . . . Garrison Access Hacks . | . . . Unauthorized Hacks . | . . . Terminals . | . . . Fabricators . | . . . Repair Stations . | . . . Recycling Units . | . . . Scanalyzers . | . . . Garrison Access . | . . . Data Cores Recovered . | . . . Used . | . . . Hacking Detections . | . . . Full Trace Events . | . . . Feedback Events . | . . . Feedback Blocked . | . . . Robot Schematics Acquired . | . . . Robots Built . | . . . Authchips . | . . . Time . | . . . Total Robot Build Rating . | . . . Part Schematics Acquired . | . . . Parts Built . | . . . Authchips . | . . . Time . | . . . Total Part Build Rating . | . . . Part Studies Acquired . | . . . Parts Repaired . | . . . Time . | . . . Parts Recycled . | . . . Recycled Matter . | . . . Retrieved Matter . | . . . Retrieved Components . | . . . Parts Scanalyzed . | . . . Part Schematics Acquired . | . . . Parts Damaged . | . . . Bothacking | -11 -10 -10 ------------ Run | Yrd Mat Sub Used RIF Installer . | . . . Robots Hacked . | . . . Non-combat . | . . . Combat . | . . . Robot Hacks Applied . | . . . Relay Couplers Released . | . . . Fabnet Peak Effective % . | . . . Robots Rewired . | . . . Allies Hacked . | . . . Hacks Repelled . | . . . Allies | -11 -10 -10 -------- Run | Yrd Mat Sub Total Allies . | . . . Largest Group . | . . . Highest-Rated Group . | . . . Highest-Rated Ally . | . . . Total Orders . | . . . Ally Attacks . | . . . Total Damage . | . . . Kills . | . . . Allies Corrupted . | . . . Allies Melted . | . . . Intel | -11 -10 -10 ------- Run | Yrd Mat Sub Active Infowar (turns) 1780 | 32 1301 447 Seismic 1780 | 32 1301 447 Robot Analysis Total . | . . . Derelict Logs Recovered . | . . . Drone Launches . | . . . Drone Recoveries . | . . . Exploration | -11 -10 -10 ------------- Run | Yrd Mat Sub Turns Passed 2415 | 191 1301 923 Spaces Moved 846 | 91 525 230 Core 2 | 2 . . Treads 844 | 89 525 230 Legs . | . . . Wheels . | . . . Hover . | . . . Flight . | . . . Fastest Speed 50 | 50 160 320 Average Speed 263 | 157 226 390 Slowest Speed 480 | 160 480 480 Overloaded Moves . | . . . Propulsion Burnouts . | . . . Robots Hopped . | . . . Potential Cave-ins . | . . . Cave-ins Triggered . | . . . Exploration Rate (%) 31 | 5 70 19 Regions Visited 2 Branch Regions 1 Pre-discovered Areas . | . . . Known Exits Taken . | . . . Unknown Exits Taken 2 | 1 1 . Scrap Searched . | . . . Spaces Dug . | . . . Terrain Destroyed 34 | . . 34 Melee . | . . . Projectile . | . . . AOE 34 | . . 34 Terrain Rammed . | . . . Walls Destroyed . | . . . Machines Disabled . | . . . Actions | -11 -10 -10 --------- Run | Yrd Mat Sub Total 936 | 113 582 241 Wait 7 | . 7 . Move 844 | 90 524 230 Hop . | . . . Pick Up 9 | 2 7 . Fast Attach 9 | 7 2 . Attach 3 | . 1 2 Detach . | . . . Swap 2 | . 2 . Drop 3 | . 3 . Fire 59 | 14 36 9 Melee . | . . . Ram . | . . . Kick . | . . . Crush . | . . . Escape Stasis . | . . . Rewire . | . . . Trap . | . . . Miscellaneous . | . . . Route ------- -11/Scrapyard -10/Materials (discovered 4 exits: [*Mat x3] / [*Sub]) -10/Subcaves (discovered 2 exits: [*Mat x2]) History --------- Turn | Location | Event 17 | -11/Scrapyard | Discovered new exit (range 16) 192 | -11/Scrapyard | Entered Materials 307 | -10/Materials | Build established: Mutant 540 | -10/Materials | Discovered new exit (range 13) 1139 | -10/Materials | Discovered new exit (range 16) 1382 | -10/Materials | Discovered new exit (range 5) 1473 | -10/Materials | Discovered new exit (range 5) 1493 | -10/Materials | Entered Subcaves 1903 | -10/Subcaves | Discovered new exit (range 5) 1906 | -10/Subcaves | Core integrity fell below 50% 1919 | -10/Subcaves | Core integrity fell below 20% 1922 | -10/Subcaves | Discovered new exit (range 7) 1971 | -10/Subcaves | Lost 5 parts (1p2n1u1w) 2416 | -10/Subcaves | Destroyed by VZ-OGO(R) with Subdweller Shrapnel Launcher Last Messages --------------- 01913_ Lgt. Treads destroyed. 01913_ Destroyed Lgt. Treads. 01913_ Lgt. Treads destroyed. 01913_ Destroyed Lgt. Treads. 01918_ RV-0WH(R) destroyed. 01922_ EXIT=FOUND 01927_ Acquired 14 matter. 01932_ 8T-4OG(R) destroyed. 01940_ IN-QGC(R) destroyed. 01940_ Seismic Detector destroyed. 01940_ Destroyed Seismic Detector. 01957_ Acquired 19 matter. 01971_ Subatomizers dissect the Sub. Laser, destroying it. 01972_ The unstable cave ceiling collapses. 01981_ Acquired 7 matter. 01991_ The unstable cave ceiling collapses. 02000_ Subatomizers dissect the Sub. Monowheel. 02002_ The unstable cave ceiling collapses. 02416_ Grenade Launcher destroyed. Map ----- +----------------------------------------------------+ | ??????????## ???????## ###??? | | ?????????## ?????### ##### #????? | | ????????## ???## #???### # #" ##???? | | ???????## ??## #????# # # " " ##??? | | ?? ### ?# ###??# " " &# ##?? | | ?? ## ### # & ### ##? | | ???# " #?# ## | | ?????????# # " ### # | | ?????????## #### ### ## # | | ??????????## ##??## ##?# # | | ???????????#### ########??# ## | | ??????????????## ## ##? ##??## ## | | ???????????????#### ######?? #?## # | | ??????????????????#### #?????# ?## # | | ?????????????????????#### ##???# #?# ## # | | ?????????????????????????# #??## ### #?### | | ???????????????????#????## #### ## ##??? | | ??????????????????# ### ## #??? | | ??????????????????# #??? | | ??????????????????# ## ##??? | | ??????????????????# ## #######???? | | ??????????????????????????## ### ##?????????? | | ?????????????????????????## ######??????????? | | ????????????????????????## #??????????????? | | ??????????????????????### #??????????????? | | ??????????????????????# @ #??????????????? | | ??????????????????????##R# ##??????????????? | | ???????????????????????# # ##???????????????? | | ???????????????????????#?# #????????????????? | | ?????????????????????????## ### #???????????????? | | ??????????????????????????###?## ??????????????? | | ????????????????????????????????# ????????????? | | ????????????????????????????????? ???????????? | | ????????????????????????????????? ??????????? | | ?????????????????????????????????? ?????????? | | ?????????????????????????????????? ??????????? | | ??????????????????????????????????? ??????????? | | ?????????????????????????????????????????????????? | | ?????????????????????????????????????????????????? | | ?????????????????????????????????????????????????? | | ?????????????????????????????????????????????????? | | ?????????????????????????????????????????????????? | | ?????????????????????????????????????????????????? | | ?????????????????????????????????????????????????? | | ?????????????????????????????????????????????????? | | ?????????????????????????????????????????????????? | | ?????????????????????????????????????????????????? | | ?????????????????????????????????????????????????? | | ?????????????????????????????????????????????????? | | ?????????????????????????????????????????????????? | +----------------------------------------------------+ Best States ------------- Heat Dissipation 25 Energy Generation 10 Energy Capacity 250 Matter Stores 300 Matter Capacity 300 Sight Range 16 Terrain Scan Density 10 Evasion (%) 40 Recoil Reduction 2 Item Schematics ----------------- None Robot Schematics ------------------ None Fabricated ------------ Nothing Repaired ---------- Nothing Studied --------- None Alien Tech Used ----------------- None Achievements -------------- None Challenges ------------ None Game ------ Seed TerrainGunInterrupter Manual? 0 Play Time 00:06:47 Cumulative 144.5 hours Start 2026.07.30 @ 20:53:43 End 2026.07.30 @ 20:59:13 Sessions 1 Manual Loads 0 Difficulty Rogue Special Mode None Game No. 295 Rogue 295 Adventurer 0 Explorer 0 Win Type - Total 1 Types 1/0/0/0/0/0/0/0/0/0 Lore% 56 Gallery% 56 Achievement% 44 Wizard Run 0 Options --------- Layout 2 ASCII 0 Keyboard 1 Movement Arrows Keybinds 0 Fullscreen 1 Font 24/Smallcaps Map View 50x44 Zoom Use 0% Tactical HUD 1 Map Filters NONE Filters NONE Steam 1 RUN: 56671852-38d3-45d8-a7f0-d737cf5cf2f4